bitfinex/quotes_BTCUSD_20250115
["timestamp","ask_amount","ask_price","bid_price","bid_amount"]
[1736958585623,0.27907272,99365.0,99364.0,0.00263287]
[1736958586062,0.27907272,99365.0,99364.0,0.00163287]
[1736958586282,0.27907272,99365.0,99364.0,0.00063287]
[1736958586488,0.28007272,99365.0,99364.0,0.00063287]
[1736958586699,0.27907272,99365.0,99364.0,0.00063287]
[1736958587106,0.27907272,99365.0,99364.0,0.00263287]
[1736958587503,0.0018458,99365.0,99364.0,0.00263287]
[1736958587698,0.0018458,99365.0,99364.0,0.02849019]
[1736958588121,0.0248458,99365.0,99364.0,0.02849019]
[1736958588307,0.0248458,99365.0,99364.0,1.52849019]
[1736958588680,0.0248458,99365.0,99364.0,1.52749019]
[1736958588887,0.0258458,99365.0,99364.0,1.52749019]
[1736958589320,0.0258458,99365.0,99364.0,1.52649019]
[1736958589651,0.0278458,99365.0,99364.0,1.52649019]
[1736958591597,0.0268458,99365.0,99364.0,1.52649019]
[1736958592503,0.0268458,99365.0,99364.0,1.52849019]
[1736958592960,0.0248458,99365.0,99364.0,1.52849019]
[1736958593193,0.0248458,99365.0,99364.0,1.53249019]
[1736958594641,0.0248458,99365.0,99364.0,1.50663287]
[1736958595045,0.0248458,99365.0,99364.0,1.53249019]
[1736958599830,0.0018458,99365.0,99364.0,1.71221711]
[1736958600372,0.0018458,99365.0,99364.0,1.60799019]
[1736958600881,0.0018458,99365.0,99364.0,1.71221711]
[1736958601297,0.0018458,99365.0,99364.0,1.53249019]
[1736958601499,0.0248458,99365.0,99364.0,1.50663287]
[1736958601702,0.2261238,99365.0,99364.0,0.00663287]
[1736958601899,0.58134267,99365.0,99364.0,0.00663287]
[1736958602218,1.15233371,99365.0,99364.0,0.00663287]
[1736958602422,1.12954176,99365.0,99364.0,0.00063287]
[1736958602749,0.52543868,99356.0,99355.0,0.0008552]
[1736958602955,0.76881396,99356.0,99355.0,0.0008552]
[1736958603363,0.99167201,99356.0,99355.0,0.0008552]
[1736958604017,0.99367201,99356.0,99355.0,0.0008552]
[1736958604225,0.77081396,99356.0,99355.0,0.0008552]
[1736958604426,0.76881396,99356.0,99355.0,0.0008552]
[1736958604641,0.84912722,99356.0,99355.0,0.0008552]
[1736958604789,0.91777886,99356.0,99355.0,0.0008552]
[1736958604979,0.78025094,99356.0,99355.0,0.0008552]
[1736958605166,0.73717532,99356.0,99355.0,0.0008552]
[1736958605388,0.65643264,99356.0,99355.0,0.0008552]
[1736958605590,0.66303264,99356.0,99355.0,0.0008552]
[1736958605790,0.66374575,99356.0,99355.0,0.0008552]
[1736958605997,0.52850811,99356.0,99355.0,0.0008552]
[1736958606342,0.92305079,99356.0,99355.0,0.0008552]
[1736958606546,1.02305079,99356.0,99355.0,0.0008552]
[1736958606776,0.87332111,99356.0,99355.0,0.0008552]
[1736958606947,0.84861185,99356.0,99355.0,0.0008552]
[1736958607147,0.14501491,99356.0,99355.0,0.0008552]
[1736958607354,0.04738799,99356.0,99355.0,0.0008552]
[1736958607587,0.24868399,99356.0,99355.0,0.0008552]
[1736958607956,0.24208399,99356.0,99355.0,1.5008552]
[1736958608159,0.04078799,99356.0,99355.0,1.5008552]
[1736958608358,0.04078799,99356.0,99355.0,1.52671252]
[1736958609646,0.04078799,99356.0,99355.0,1.52971252]
[1736958610253,0.04178799,99356.0,99355.0,1.52971252]
[1736958610736,0.04078799,99356.0,99355.0,1.52971252]
[1736958611106,0.04078799,99356.0,99355.0,1.53171252]
[1736958612321,0.26508399,99356.0,99355.0,0.0058552]
[1736958612860,0.68971091,99356.0,99355.0,0.0058552]
[1736958613284,0.68971091,99356.0,99355.0,0.0038552]
[1736958613493,0.88781091,99356.0,99355.0,0.0008552]
[1736958614570,0.89081091,99356.0,99355.0,0.0008552]
[1736958614977,0.88981091,99356.0,99355.0,0.0008552]
[1736958615300,0.69051491,99356.0,99342.0,0.0008551]
[1736958615541,0.54846468,99343.0,99342.0,0.0008551]
[1736958615746,0.7381916,99343.0,99342.0,1e-07]
[1736958615961,0.7862916,99343.0,99342.0,1e-07]
[1736958616799,0.7892916,99343.0,99342.0,0.0010001]
[1736958617187,0.81755271,99343.0,99342.0,1e-07]
[1736958617388,0.82055271,99343.0,99342.0,0.0010001]
[1736958617598,1.04994429,99343.0,99342.0,0.0010001]
[1736958617802,1.01868318,99343.0,99342.0,0.0010001]
[1736958618006,1.01468318,99343.0,99342.0,0.0010001]
[1736958618414,0.92729278,99343.0,99342.0,0.0010001]
[1736958618776,0.82729278,99343.0,99342.0,0.0010001]
[1736958618977,0.6892916,99343.0,99342.0,1e-07]
[1736958619409,0.86751814,99343.0,99342.0,1e-07]
[1736958619967,1.27518374,99343.0,99342.0,1e-07]
[1736958620195,1.27818374,99343.0,99342.0,1e-07]
[1736958620766,0.86888268,99334.0,99329.0,0.00138]
[1736958620950,0.86888268,99334.0,99333.0,1e-06]
[1736958620951,0.9731096,99334.0,99333.0,1e-06]
[1736958621184,0.89896692,99334.0,99333.0,1e-06]
[1736958621388,0.9731096,99334.0,99333.0,1e-06]
[1736958622061,0.97315944,99334.0,99333.0,1e-06]
[1736958622577,0.97715944,99334.0,99333.0,1e-06]
[1736958623067,0.97915944,99334.0,99333.0,1e-06]
[1736958623335,0.78201676,99334.0,99333.0,1e-06]
[1736958623781,0.80561676,99334.0,99333.0,1e-06]
[1736958624000,0.81261676,99334.0,99333.0,1e-06]
[1736958624486,0.81061676,99334.0,99333.0,1e-06]
[1736958624889,0.81261676,99334.0,99333.0,1e-06]
[1736958625329,0.88675944,99334.0,99333.0,1e-06]
[1736958625672,0.88175944,99334.0,99333.0,1e-06]
[1736958625884,1.06395944,99334.0,99333.0,1e-06]
[1736958626455,0.32414268,99330.0,99329.0,1e-06]
[1736958626639,0.4513696,99330.0,99329.0,1e-06]
[1736958627602,0.4523696,99330.0,99329.0,1e-06]
[1736958628879,0.4563696,99330.0,99329.0,1e-06]
[1736958629694,0.3563696,99330.0,99329.0,1e-06]
[1736958629845,0.4563696,99330.0,99329.0,1e-06]
[1736958630288,0.7767696,99330.0,99329.0,1e-06]
[1736958631454,0.6767696,99330.0,99329.0,1e-06]
[1736958631711,0.7767696,99330.0,99329.0,1e-06]
[1736958634326,0.7767696,99330.0,99329.0,0.0008562]
[1736958634563,0.34714268,99321.0,99320.0,3.3e-07]
[1736958634787,0.27722692,99321.0,99320.0,3.3e-07]
[1736958634983,0.28382692,99321.0,99320.0,3.3e-07]
[1736958635821,0.37722692,99321.0,99320.0,3.3e-07]
[1736958636021,0.4579696,99321.0,99320.0,3.3e-07]
[1736958636853,0.44851968,99316.0,99315.0,3.3e-07]
[1736958637085,0.80901225,99316.0,99315.0,3.3e-07]
[1736958638816,0.81301225,99316.0,99315.0,3.3e-07]
[1736958639227,0.81401225,99316.0,99315.0,3.3e-07]
[1736958639457,1.13441225,99316.0,99315.0,3.3e-07]
[1736958640603,1.05641225,99316.0,99315.0,3.3e-07]
[1736958640852,1.0252466,99316.0,99315.0,3.3e-07]
[1736958641531,0.78100392,99316.0,99315.0,3.3e-07]
[1736958641768,0.78760392,99316.0,99315.0,3.3e-07]
[1736958642308,0.81060392,99316.0,99315.0,3.3e-07]
[1736958644469,0.98897352,99316.0,99315.0,3.3e-07]
[1736958644700,1.12013697,99316.0,99315.0,3.3e-07]
[1736958644934,0.94176737,99316.0,99315.0,3.3e-07]
[1736958645166,0.81060392,99316.0,99315.0,3.3e-07]
[1736958645418,0.91060392,99316.0,99315.0,3.3e-07]
[1736958645625,0.81060392,99316.0,99315.0,3.3e-07]
[1736958645843,0.80400392,99316.0,99315.0,3.3e-07]
[1736958646066,0.81060392,99316.0,99315.0,3.3e-07]
[1736958646268,0.84183072,99316.0,99315.0,3.3e-07]
[1736958646881,0.81060392,99316.0,99315.0,3.3e-07]
[1736958647109,0.84184313,99316.0,99315.0,0.00085563]
[1736958647544,0.97738852,99316.0,99315.0,6.3e-07]
[1736958648367,1.01598581,99316.0,99315.0,6.3e-07]
[1736958649187,0.54852768,99312.0,99311.0,2.1e-07]
[1736958649394,0.68399381,99312.0,99311.0,2.1e-07]
[1736958650051,0.17414268,99305.0,99304.0,1.3e-07]
[1736958650253,0.48260881,99305.0,99304.0,1.3e-07]
[1736958650767,0.58683573,99305.0,99304.0,1.3e-07]
[1736958650994,0.52555568,99298.0,99297.0,0.00138]
[1736958651205,0.52555568,99298.0,99291.0,8.2e-07]
[1736958651206,0.32414268,99292.0,99291.0,8.2e-07]
[1736958651424,0.80300881,99292.0,99291.0,8.2e-07]
[1736958651851,0.07414268,99271.0,99268.0,3.4e-07]
[1736958652092,0.64454268,99265.0,99264.0,6.4e-07]
[1736958652333,0.80300881,99265.0,99264.0,0.00049852]
[1736958653049,0.82924102,99265.0,99264.0,0.00049852]
[1736958653346,0.82924102,99265.0,99264.0,0.00149852]
[1736958653531,0.80300881,99265.0,99264.0,0.00149852]
[1736958653774,0.82924102,99265.0,99264.0,0.00149852]
[1736958654006,0.72924102,99265.0,99264.0,0.00149852]
[1736958654242,0.80300881,99265.0,99264.0,0.00149852]
[1736958654480,0.80300881,99265.0,99264.0,0.00049852]
[1736958654481,0.90723573,99265.0,99264.0,0.00049852]
[1736958654747,0.80500881,99265.0,99264.0,0.00149852]
[1736958654983,0.83124102,99265.0,99264.0,0.00049852]
[1736958655187,0.80500881,99265.0,99264.0,0.00049852]
[1736958655427,0.71000881,99265.0,99264.0,0.00049852]
[1736958655900,0.71660881,99265.0,99264.0,0.00049852]
[1736958656104,0.88151282,99265.0,99264.0,0.00049852]
[1736958656316,0.58822692,99265.0,99264.0,0.00049852]
[1736958657212,0.61122692,99265.0,99264.0,0.00049852]
[1736958658233,0.61122692,99265.0,99242.0,0.10221232]
[1736958658234,0.15,99250.0,99248.0,0.0006792]
[1736958658443,0.023,99249.0,99248.0,0.00082909]
[1736958658651,0.201489,99261.0,99260.0,0.02585732]
[1736958658854,0.201482,99264.0,99262.0,0.0755]
[1736958659053,0.3254,99265.0,99264.0,0.02585732]
[1736958659276,0.201446,99282.0,99281.0,0.02585732]
[1736958659474,0.201446,99282.0,99281.0,0.07465732]
[1736958659780,0.201446,99282.0,99281.0,1.57465732]
[1736958660515,0.201446,99282.0,99281.0,1.57480721]
[1736958660722,0.0066,99286.0,99285.0,0.02585732]
[1736958660954,0.15,99298.0,99281.0,1.54894989]
[1736958660955,0.0066,99306.0,99300.0,0.02585732]
[1736958661187,0.17554711,99310.0,99303.0,0.02585732]
[1736958661394,0.37693211,99313.0,99309.0,0.02585732]
[1736958662173,0.15,99311.0,99303.0,0.02585732]
[1736958662381,0.15,99311.0,99301.0,0.0755]
[1736958662382,0.201401,99304.0,99302.0,0.02585732]
[1736958662783,0.023,99303.0,99302.0,0.02585732]
[1736958662981,0.173,99302.0,99281.0,0.04894989]
[1736958663181,0.22444,99285.0,99282.0,0.10135732]
[1736958663377,0.22444,99285.0,99284.0,0.02585732]
[1736958663590,0.224444,99283.0,99282.0,0.10135732]
[1736958663782,0.224444,99283.0,99282.0,0.0755]
[1736958664051,0.224444,99283.0,99282.0,0.10624835]
[1736958664260,0.20143,99290.0,99289.0,0.02585732]
[1736958664261,0.35143,99290.0,99289.0,0.02585732]
[1736958664467,0.201401,99305.0,99304.0,0.02585732]
[1736958664669,0.0066,99308.0,99307.0,0.02585732]
[1736958664990,0.402772,99312.0,99307.0,0.10725732]
[1736958665191,0.201381,99314.0,99307.0,0.10725732]
[1736958665391,0.201381,99314.0,99313.0,0.02585732]
[1736958666013,0.201362,99324.0,99315.0,0.02585732]
[1736958666249,0.201371,99320.0,99315.0,0.02585732]
[1736958666450,0.402742,99320.0,99315.0,0.03070863]
[1736958666676,0.201362,99324.0,99315.0,0.02600661]
[1736958666908,0.201371,99319.0,99315.0,0.03085792]
[1736958667148,0.02479655,99316.0,99315.0,0.03085792]
[1736958667401,0.02479655,99316.0,99315.0,1.52600661]
[1736958667842,0.02479655,99316.0,99315.0,1.53085792]
[1736958668047,0.02479655,99316.0,99315.0,0.0050006]
[1736958668274,0.27902347,99316.0,99315.0,0.00214929]
[1736958668519,0.27902347,99316.0,99315.0,0.00614929]
[1736958668731,0.27902347,99316.0,99315.0,0.00214929]
[1736958668958,0.31192545,99316.0,99315.0,2.9e-07]
[1736958669172,0.48606813,99316.0,99315.0,2.9e-07]
[1736958669386,0.54344154,99316.0,99315.0,2.9e-07]
[1736958669597,0.46929886,99316.0,99315.0,2.9e-07]
[1736958669800,0.51720933,99316.0,99315.0,2.9e-07]
[1736958670046,0.78434095,99316.0,99315.0,2.9e-07]
[1736958670496,0.45316615,99316.0,99315.0,2.9e-07]
[1736958670711,0.201446,99282.0,99281.0,0.10725732]
[1736958670918,0.47867292,99282.0,99281.0,4.993e-05]
[1736958671329,0.374446,99282.0,99281.0,4.993e-05]
[1736958671767,0.374446,99282.0,99281.0,0.00204993]
[1736958671977,0.47867292,99282.0,99281.0,0.00204993]
[1736958672411,0.47867292,99282.0,99281.0,4.993e-05]
[1736958673038,0.47967292,99282.0,99281.0,4.993e-05]
[1736958673641,0.48567292,99282.0,99281.0,0.00104993]
[1736958673848,0.48467292,99282.0,99281.0,4.993e-05]
[1736958674047,0.48467292,99282.0,99281.0,0.00104993]
[1736958674250,0.49367292,99282.0,99281.0,0.00104993]
[1736958674720,0.49167292,99282.0,99281.0,0.00104993]
[1736958675129,0.49467292,99282.0,99281.0,0.00104993]
[1736958675514,0.35148,99265.0,99255.0,0.02585732]
[1736958675671,0.35148,99265.0,99264.0,0.00100539]
[1736958675672,0.47870692,99265.0,99264.0,0.00100539]
[1736958676090,0.48530692,99265.0,99264.0,0.00100539]
[1736958677190,0.65568926,99265.0,99264.0,0.00100539]
[1736958677344,0.6594496,99265.0,99264.0,0.00100539]
[1736958677536,0.6594496,99265.0,99264.0,3.9e-07]
[1736958678941,0.7521706,99265.0,99264.0,3.9e-07]
[1736958679084,0.54742792,99265.0,99264.0,3.9e-07]
[1736958679293,0.55402792,99265.0,99264.0,0.00100039]
[1736958679501,0.59230692,99265.0,99264.0,0.00100039]
[1736958679705,0.49230692,99265.0,99264.0,0.00100039]
[1736958679946,0.6664496,99265.0,99264.0,3.9e-07]
[1736958680181,0.66632809,99265.0,99264.0,3.9e-07]
[1736958681166,0.66432809,99265.0,99264.0,3.9e-07]
[1736958681534,0.351513,99249.0,99248.0,0.0015352]
[1736958681735,0.47873992,99249.0,99248.0,0.0015352]
[1736958682547,0.5528826,99249.0,99248.0,2e-07]
[1736958682760,0.65710952,99249.0,99248.0,2e-07]
[1736958683392,0.68734173,99249.0,99248.0,2e-07]
[1736958683588,0.78734173,99249.0,99248.0,2e-07]
[1736958683797,0.79394173,99249.0,99248.0,2e-07]
[1736958684638,0.79194173,99249.0,99248.0,2e-07]
[1736958685114,0.79794173,99249.0,99248.0,0.0010002]
[1736958685521,0.69371481,99249.0,99248.0,0.0010002]
[1736958685934,0.69371481,99249.0,99248.0,2e-07]
[1736958686245,0.6674826,99249.0,99248.0,2e-07]
[1736958687021,0.58673992,99249.0,99248.0,2e-07]
[1736958687227,0.59333992,99249.0,99248.0,2e-07]
[1736958687842,0.49333992,99249.0,99248.0,2e-07]
[1736958688046,0.47033992,99249.0,99248.0,2e-07]
[1736958688696,0.49333992,99249.0,99248.0,2e-07]
[1736958688920,0.33673992,99249.0,99248.0,2e-07]
[1736958689129,0.34333992,99249.0,99248.0,2e-07]
[1736958689264,0.201523,99244.0,99243.0,0.00138]
[1736958689475,0.47874992,99244.0,99243.0,0.00152978]
[1736958690150,0.358123,99244.0,99243.0,0.0273871]
[1736958690358,0.209123,99244.0,99243.0,0.0273871]
[1736958690982,0.202523,99244.0,99243.0,0.0750871]
[1736958691416,0.225523,99244.0,99243.0,0.00152978]
[1736958691615,0.47974992,99244.0,99243.0,0.00152978]
[1736958691817,0.49034992,99244.0,99243.0,0.00152978]
[1736958692038,0.48634992,99244.0,99243.0,0.00152978]
[1736958692240,0.48634992,99244.0,99243.0,0.00352978]
[1736958692639,0.48634992,99244.0,99243.0,0.00152978]
[1736958693408,0.48534992,99244.0,99243.0,0.00152978]
[1736958693613,0.51282579,99244.0,99243.0,0.00152978]
[1736958693973,0.48534992,99244.0,99243.0,0.00152978]
[1736958694171,0.48534992,99244.0,99243.0,0.00252978]
[1736958694586,0.173,99243.0,99242.0,7.8e-07]
[1736958694791,0.273,99240.0,99239.0,7.8e-07]
[1736958694998,0.57875792,99240.0,99239.0,7.8e-07]
[1736958695951,0.58175792,99240.0,99239.0,7.8e-07]
[1736958696599,0.15,99231.0,99230.0,7.8e-07]
[1736958696805,0.27722692,99231.0,99230.0,7.8e-07]
[1736958697008,0.30345913,99231.0,99230.0,7.8e-07]
[1736958697249,0.27722692,99231.0,99230.0,7.8e-07]
[1736958697465,0.37722692,99231.0,99230.0,7.8e-07]
[1736958698366,0.38622692,99231.0,99230.0,0.00100078]
[1736958699609,0.39045384,99231.0,99230.0,0.00100078]
[1736958699764,0.38622692,99231.0,99230.0,0.00100078]
[1736958700363,0.28622692,99231.0,99230.0,0.00100078]
[1736958700967,0.28622692,99231.0,99230.0,7.8e-07]
[1736958701174,0.28622692,99231.0,99216.0,0.00138]
[1736958701175,0.374568,99222.0,99216.0,0.00138]
[1736958701377,0.47879492,99222.0,99216.0,0.00138]
[1736958701797,0.173,99221.0,99216.0,0.00138]
[1736958701995,0.374578,99217.0,99216.0,0.00138]
[1736958702250,0.48540492,99217.0,99216.0,0.00138]
[1736958703115,0.48640492,99217.0,99216.0,0.00138]
[1736958704613,0.47980492,99217.0,99216.0,0.00138]
[1736958704817,0.48640492,99217.0,99216.0,0.00138]
[1736958705647,0.48640492,99217.0,99211.0,0.02532812]
[1736958705648,0.201584,99214.0,99211.0,0.02532812]
[1736958705847,0.374588,99212.0,99211.0,0.02532812]
[1736958706055,0.47881492,99212.0,99211.0,0.02582837]
[1736958706261,0.47881492,99212.0,99211.0,0.00050025]
[1736958706463,0.47881492,99212.0,99211.0,0.02582837]
[1736958707133,0.374588,99212.0,99211.0,0.02582837]
[1736958707368,0.47881492,99212.0,99211.0,0.00050025]
[1736958707588,0.48541492,99212.0,99211.0,0.00150025]
[1736958708973,0.48541492,99212.0,99211.0,0.00235625]
[1736958709192,0.58027261,99212.0,99211.0,0.00135625]
[1736958709419,0.51861252,99212.0,99211.0,2.5e-07]
[1736958709828,0.51861252,99212.0,99207.0,7.5e-07]
[1736958709829,0.351596,99208.0,99207.0,7.5e-07]
[1736958710031,0.51002052,99208.0,99207.0,3.5e-07]
[1736958711088,0.61002052,99208.0,99207.0,3.5e-07]
[1736958711318,0.35161,99201.0,99200.0,5.1e-07]
[1736958711552,0.51003452,99201.0,99200.0,5.1e-07]
[1736958712549,0.51303452,99201.0,99200.0,5.1e-07]
[1736958712752,0.51003452,99201.0,99200.0,5.1e-07]
[1736958713000,0.51803452,99201.0,99200.0,5.1e-07]
[1736958713437,0.51803452,99201.0,99188.0,3e-08]
[1736958713438,0.201621,99196.0,99188.0,3e-08]
[1736958713664,0.15,99198.0,99188.0,3e-08]
[1736958713665,0.3018988,99189.0,99188.0,3e-08]
[1736958713901,0.32467188,99185.0,99176.0,4.2e-07]
[1736958714096,0.374669,99172.0,99171.0,4.2e-07]
[1736958714329,0.51009352,99172.0,99171.0,4.2e-07]
[1736958715355,0.52369352,99172.0,99171.0,4.2e-07]
[1736958716217,0.51709352,99172.0,99171.0,4.2e-07]
[1736958716428,0.49249592,99172.0,99171.0,4.2e-07]
[1736958716920,0.49449592,99172.0,99171.0,4.2e-07]
[1736958718440,0.48789592,99172.0,99171.0,4.2e-07]
[1736958718648,0.49449592,99172.0,99171.0,4.2e-07]
[1736958719047,0.48789592,99172.0,99171.0,4.2e-07]
[1736958719235,0.49449592,99172.0,99171.0,4.2e-07]
[1736958720594,0.49449592,99172.0,99171.0,0.00085682]
[1736958722443,0.49449592,99172.0,99171.0,8.2e-07]
[1736958723071,0.201674,99170.0,99167.0,8.2e-07]
[1736958723298,0.47890392,99168.0,99167.0,8.2e-07]
[1736958723672,0.37468,99167.0,99164.0,1.2e-07]
[1736958723878,0.374684,99165.0,99164.0,1.2e-07]
[1736958724092,0.47891092,99165.0,99164.0,1.2e-07]
[1736958724722,0.47891092,99165.0,99162.0,0.00138]
[1736958724723,0.47891092,99165.0,99163.0,0.03921438]
[1736958724929,0.351688,99163.0,99162.0,3.8e-07]
[1736958725139,0.351702,99156.0,99155.0,5.8e-07]
[1736958725351,0.47892892,99156.0,99155.0,5.8e-07]
[1736958725839,0.47892892,99156.0,99151.0,0.06178612]
[1736958725840,0.023,99152.0,99151.0,0.0429957]
[1736958726052,0.023,99152.0,99144.0,0.02670812]
[1736958726053,0.201715,99150.0,99147.0,0.0397447]
[1736958726268,0.023,99146.0,99144.0,0.00138]
[1736958726479,0.47894892,99146.0,99145.0,0.06014993]
[1736958727747,0.47894892,99146.0,99144.0,0.00138]
[1736958727748,0.173,99145.0,99144.0,9.3e-07]
[1736958727970,0.224726,99144.0,99143.0,8.3e-07]
[1736958728097,0.47895292,99144.0,99143.0,8.3e-07]
[1736958728719,0.48559292,99144.0,99143.0,8.3e-07]
[1736958728912,0.47895292,99144.0,99143.0,8.3e-07]
[1736958729114,0.48559292,99144.0,99143.0,8.3e-07]
[1736958729321,0.47895292,99144.0,99143.0,0.02532895]
[1736958729552,0.358366,99144.0,99143.0,0.02532895]
[1736958729757,0.358366,99144.0,99143.0,8.3e-07]
[1736958729971,0.33559292,99144.0,99143.0,8.3e-07]
[1736958730174,0.48659292,99144.0,99143.0,8.3e-07]
[1736958731315,0.52157903,99144.0,99143.0,8.3e-07]
[1736958731483,0.48959292,99144.0,99143.0,8.3e-07]
[1736958731717,0.48559292,99144.0,99143.0,8.3e-07]
[1736958731871,0.49059292,99144.0,99143.0,8.3e-07]
[1736958732074,0.49059292,99144.0,99140.0,8.3e-07]
[1736958732254,0.374732,99141.0,99140.0,8.3e-07]
[1736958732453,0.47895892,99141.0,99140.0,8.3e-07]
[1736958733538,0.47895892,99141.0,99135.0,8.2e-07]
[1736958733539,0.15,99138.0,99135.0,8.2e-07]
[1736958733649,0.15,99136.0,99135.0,8.2e-07]
[1736958733858,0.27722692,99136.0,99135.0,8.2e-07]
[1736958734698,0.28386692,99136.0,99135.0,8.2e-07]
[1736958735157,0.28386692,99136.0,99135.0,0.02532894]
[1736958735392,0.28322692,99136.0,99135.0,0.02532894]
[1736958735607,0.28386692,99136.0,99135.0,8.2e-07]
[1736958735863,0.28886692,99136.0,99135.0,8.2e-07]
[1736958736040,0.29086692,99136.0,99135.0,8.2e-07]
[1736958736453,0.28886692,99136.0,99135.0,8.2e-07]
[1736958736928,0.28886692,99136.0,99130.0,0.000856]
[1736958736929,0.42649,99135.0,99130.0,8.2e-07]
[1736958737133,0.42649,99135.0,99120.0,0.03744486]
[1736958737134,0.201769,99123.0,99120.0,0.03744486]
[1736958737335,0.374773,99121.0,99120.0,0.03744486]
[1736958737538,0.47899992,99121.0,99120.0,0.03744486]
[1736958738809,0.48563992,99121.0,99120.0,0.06277298]
[1736958739220,0.48663992,99121.0,99120.0,0.06277298]
[1736958739428,0.381413,99121.0,99120.0,0.06277298]
[1736958740006,0.381413,99121.0,99120.0,0.06377298]
[1736958740411,0.231413,99121.0,99120.0,0.14357298]
[1736958740569,0.231413,99121.0,99120.0,0.14257298]
[1736958740827,0.232413,99121.0,99120.0,0.14357298]
[1736958741023,0.231413,99121.0,99120.0,0.14357298]
[1736958741225,0.231413,99121.0,99120.0,0.14838834]
[1736958742237,0.231413,99121.0,99120.0,0.14738834]
[1736958742425,0.48563992,99121.0,99120.0,0.12206022]
[1736958742627,0.48563992,99121.0,99120.0,0.14738834]
[1736958743107,0.358413,99121.0,99120.0,0.06277298]
[1736958743558,0.381413,99121.0,99120.0,0.06277298]
[1736958744185,0.382413,99121.0,99120.0,0.06277298]
[1736958744402,0.381413,99121.0,99120.0,0.06277298]
[1736958744749,0.382413,99121.0,99120.0,0.06277298]
[1736958745266,0.48563992,99121.0,99120.0,0.03744486]
[1736958745465,0.48663992,99121.0,99120.0,0.03744486]
[1736958745672,0.51779914,99121.0,99120.0,0.03744486]
[1736958745867,0.51779914,99121.0,99120.0,0.03829986]
[1736958746888,0.51679914,99121.0,99120.0,0.03829986]
[1736958747088,0.51679914,99121.0,99114.0,0.06739473]
[1736958747089,0.351785,99115.0,99114.0,0.00617959]
[1736958747289,0.49381114,99115.0,99114.0,0.00632918]
[1736958747488,0.51668947,99115.0,99114.0,0.00632918]
[1736958747695,0.51668947,99115.0,99102.0,0.06939759]
[1736958747696,0.023,99103.0,99086.0,0.00138]
[1736958747893,0.023,99103.0,99071.0,0.0012564]
[1736958747894,0.15,99080.0,99071.0,0.0012564]
[1736958748104,0.15,99071.0,99063.0,0.00138]
[1736958748342,0.47910592,99069.0,99063.0,0.00138]
[1736958748532,0.51025409,99069.0,99063.0,0.00138]
[1736958748734,0.539857,99069.0,99063.0,0.00138]
[1736958748907,0.539857,99069.0,99041.0,0.13924961]
[1736958748908,0.15,99045.0,99041.0,0.13924961]
[1736958749114,0.351934,99042.0,99041.0,0.06344961]
[1736958749312,0.46280092,99042.0,99041.0,0.06344961]
[1736958749833,0.48580092,99042.0,99041.0,0.06344961]
[1736958750036,0.47916092,99042.0,99041.0,0.06344961]
[1736958750426,0.48580092,99042.0,99041.0,0.06344961]
[1736958751071,0.48016092,99042.0,99041.0,0.06344961]
[1736958751437,0.48680092,99042.0,99041.0,0.06344961]
[1736958751645,0.48016092,99042.0,99041.0,0.06344961]
[1736958751868,0.48680092,99042.0,99041.0,0.06344961]
[1736958752071,0.48680092,99042.0,99041.0,0.06644961]
[1736958752304,0.352934,99042.0,99041.0,0.06644961]
[1736958752821,0.359574,99042.0,99041.0,0.06644961]
[1736958753023,0.352934,99042.0,99041.0,0.06644961]
[1736958753178,0.359574,99042.0,99041.0,0.06644961]
[1736958753588,0.001,99042.0,99041.0,0.24224961]
[1736958753792,0.001,99042.0,99041.0,0.60124778]
[1736958753995,0.1176504,99060.0,99054.0,0.1758]
[1736958754196,0.1176504,99060.0,99055.0,0.0057102]
[1736958754456,0.4038,99059.0,99055.0,0.0057102]
[1736958754664,0.4038,99059.0,99055.0,0.00470077]
[1736958754872,0.4038,99059.0,99054.0,0.17680943]
[1736958755078,0.4038,99059.0,99056.0,0.00462753]
[1736958755285,0.201899,99059.0,99055.0,0.00462874]
[1736958755511,0.201899,99059.0,99057.0,0.00462632]
[1736958755709,0.201903,99058.0,99054.0,0.17780943]
[1736958755948,0.00672,99059.0,99054.0,0.1758]
[1736958756151,0.208621,99059.0,99056.0,0.001]
[1736958756362,0.410522,99059.0,99056.0,0.001]
[1736958756767,0.410522,99059.0,99054.0,0.0758]
[1736958757101,0.410522,99059.0,99057.0,0.00462632]
[1736958757330,0.410522,99059.0,99054.0,0.0768]
[1736958757532,0.403802,99059.0,99058.0,1.5]
[1736958757738,0.410522,99059.0,99058.0,1.5]
[1736958757944,0.410522,99059.0,99058.0,1.50462511]
[1736958758764,0.00851698,99059.0,99058.0,1.5]
[1736958758962,0.00179698,99059.0,99058.0,1.5]
[1736958759182,0.00179698,99059.0,99058.0,1.501]
[1736958759554,0.00179698,99059.0,99058.0,1.502]
[1736958759967,0.00179698,99059.0,99058.0,1.501]
[1736958760375,0.00179698,99059.0,99058.0,1.504]
[1736958760575,0.00851698,99059.0,99058.0,1.504]
[1736958761046,0.00851698,99059.0,99058.0,0.003]
[1736958761399,0.00951698,99059.0,99058.0,0.008]
[1736958761769,0.00179698,99059.0,99053.0,0.1]
[1736958761896,0.01151698,99059.0,99058.0,0.001]
[1736958762105,0.00179698,99059.0,99058.0,0.18170941]
[1736958762318,0.00179698,99059.0,99058.0,1.68070941]
[1736958762538,0.00379698,99059.0,99058.0,1.6797]
[1736958762739,0.00479698,99059.0,99058.0,1.88392692]
[1736958763162,0.00179698,99059.0,99058.0,1.6797]
[1736958763365,0.00179698,99059.0,99058.0,1.5797]
[1736958763568,0.00179698,99059.0,99058.0,1.6817]
[1736958763781,0.00179698,99059.0,99058.0,1.88592692]
[1736958763993,0.00049698,99059.0,99058.0,1.5817]
[1736958764632,0.00049698,99059.0,99058.0,0.0817]
[1736958764863,0.00049698,99059.0,99041.0,0.11240531]
[1736958764864,0.201924,99047.0,99046.0,0.0797]
[1736958765284,0.201924,99047.0,99041.0,0.06430531]
[1736958765285,0.201934,99042.0,99041.0,0.06430531]
[1736958765495,0.358654,99042.0,99041.0,0.06430531]
[1736958765929,0.381654,99042.0,99041.0,0.06430531]
[1736958766592,0.48588092,99042.0,99041.0,0.06430531]
[1736958766960,0.48588092,99042.0,99041.0,0.06830531]
[1736958767790,0.48588092,99042.0,99041.0,0.07030531]
[1736958768803,0.208654,99042.0,99041.0,0.07030531]
[1736958769217,0.231654,99042.0,99041.0,0.07030531]
[1736958769838,0.33588092,99042.0,99041.0,0.07030531]
[1736958770045,0.38345098,99042.0,99041.0,0.07030531]
[1736958770249,0.36045098,99042.0,99041.0,0.07030531]
[1736958771135,0.35373098,99042.0,99041.0,0.07030531]
[1736958771366,0.36045098,99042.0,99041.0,0.07030531]
[1736958772138,0.21045098,99042.0,99041.0,0.07030531]
[1736958772568,0.00179698,99042.0,99041.0,0.17030531]
[1736958772855,0.00179698,99042.0,99041.0,1.67131481]
[1736958773019,0.00179698,99042.0,99041.0,1.67030531]
[1736958773431,0.00179698,99042.0,99041.0,1.77453223]
[1736958773933,0.00179698,99042.0,99041.0,1.67030531]